fUST/lending_fUST_20250624
["ID","MTS","AMOUNT","RATE_DAILY","PERIOD"]
[367332974,1750753854092,-578.07,0.0002,2]
[367332975,1750753854101,-460.0,0.0002,2]
[367332976,1750753854110,-460.0,0.0002,2]
[367332977,1750753854119,-460.0,0.0002,2]
[367332978,1750753854130,-735.87,0.0002,2]
[367332979,1750753854142,-471.2,0.0002,2]
[367332980,1750753854153,-460.0,0.0002,2]
[367332981,1750753854162,-460.0,0.0002,2]
[367332982,1750753854171,-460.0,0.0002,2]
[367332983,1750753854180,-1246.9,0.0002,2]
[367332984,1750753854190,-460.0,0.0002,2]
[367332985,1750753854200,-460.0,0.0002,2]
[367332986,1750753854209,-917.49,0.0002,2]
[367332987,1750753854218,-4012.53,0.0002,2]
[367332988,1750753854229,-460.0,0.0002,2]
[367332989,1750753854242,-1024.0,0.0002,2]
[367332990,1750753854252,-460.0,0.0002,2]
[367332991,1750753854262,-460.0,0.0002,2]
[367332992,1750753854271,-460.0,0.0002,2]
[367332993,1750753854282,-2174.0,0.0002,2]
[367332994,1750753854291,-1810.6,0.0002,2]
[367332995,1750753854300,-460.0,0.0002,2]
[367332996,1750753854310,-460.0,0.0002,2]
[367332997,1750753854320,-460.0,0.0002,2]
[367332998,1750753854330,-460.0,0.0002,2]
[367332999,1750753854340,-460.0,0.0002,2]
[367333000,1750753854349,-460.0,0.0002,2]
[367333001,1750753854360,-460.0,0.0002,2]
[367333002,1750753854369,-460.0,0.0002,2]
[367333003,1750753854379,-3902.37,0.0002,2]
[367333004,1750753854389,-1282.97,0.0002,2]
[367333005,1750753854400,-465.14290261,0.0002,2]
[367333006,1750753854409,-460.0,0.0002,2]
[367333007,1750753854418,-9554.89,0.0002,2]
[367333008,1750753854428,-460.0,0.0002,2]
[367333009,1750753854437,-470.38,0.0002,2]
[367333010,1750753854447,-460.0,0.0002,2]
[367333011,1750753854457,-4596.98,0.0002,2]
[367333012,1750753854467,-460.0,0.0002,2]
[367333013,1750753854476,-1536.12,0.0002,2]
[367333014,1750753854485,-460.0,0.0002,2]
[367333015,1750753854495,-827.88,0.0002,2]
[367333016,1750753854504,-1383.99,0.0002,2]
[367333017,1750753854514,-4000.0,0.0002,4]
[367333018,1750753854524,-1445.24,0.0002,2]
[367333019,1750753854534,-460.0,0.0002,2]
[367333020,1750753854544,-460.0,0.0002,2]
[367333021,1750753854553,-460.0,0.0002,2]
[367333022,1750753854563,-741.52,0.0002,2]
[367333023,1750753854573,-460.0,0.0002,2]
[367333024,1750753854583,-3721.17,0.0002,2]
[367333025,1750753854592,-1427.47,0.0002,2]
[367333026,1750753854602,-2744.12,0.0002,2]
[367333027,1750753854612,-1425.02,0.0002,2]
[367333028,1750753854621,-1214.81,0.0002,2]
[367333029,1750753854630,-460.0,0.0002,2]
[367333030,1750753854640,-460.0,0.0002,2]
[367333031,1750753854649,-460.0,0.0002,2]
[367333032,1750753854659,-440.0,0.0002,2]
[367333033,1750753854668,-460.0,0.0002,2]
[367333034,1750753854678,-500.0,0.0002,2]
[367333035,1750753854687,-460.0,0.0002,2]
[367333036,1750753854697,-460.0,0.0002,2]
[367333037,1750753854707,-151.0,0.000201,4]
[367333038,1750753854716,-196.0,0.00020106,2]
[367333039,1750753854726,-168.7242665,0.00020135,2]
[367333040,1750753854736,-500.0,0.00020164,2]
[367333041,1750753854746,-549.862717,0.00020187,2]
[367333042,1750753854755,-3052.6688741,0.000202,2]
[367333043,1750753854764,-3052.6688741,0.000202,2]
[367333044,1750753854774,-381.39525874,0.00020201,2]
[367333045,1750753854783,-399.60244699,0.00020208,2]
[367333046,1750753854793,-654.0,0.00020235,2]
[367333047,1750753854803,-2160.0,0.00020235,2]
[367333048,1750753854812,-406.0,0.00020235,2]
[367333049,1750753854821,-406.0,0.00020235,2]
[367333050,1750753854831,-965.0,0.00020235,2]
[367333051,1750753854841,-3052.6688741,0.00020245,2]
[367333052,1750753854851,-205.678824,0.00020247,2]
[367333053,1750753854860,-151.0,0.00020247,2]
[367333054,1750753854870,-151.0,0.00020247,2]
[367333055,1750753854880,-500.0,0.00020247,2]
[367333056,1750753854889,-1500.0,0.00020268,2]
[367333057,1750753854899,-1500.0,0.00020268,2]
[367333058,1750753854911,-1500.0,0.00020268,2]
[367333059,1750753854921,-1500.0,0.00020268,2]
[367333060,1750753854931,-909104.9037,0.00020269,2]
[367333061,1750753854940,-37932.62075602,0.0002027,2]
[367333062,1750753854949,-460.0,0.00020273,2]
[367333063,1750753854959,-349.6016524,0.00020273,2]
[367333064,1750753855065,-460.0,0.00020273,2]
[367333065,1750753855074,-460.0,0.00020273,2]
[367333066,1750753855084,-460.0,0.00020273,2]
[367333067,1750753855093,-460.0,0.00020273,2]
[367333068,1750753855103,-460.0,0.00020273,2]
[367333069,1750753855112,-462.01,0.00020273,2]
[367333070,1750753855121,-460.0,0.00020273,2]
[367333071,1750753855131,-460.0,0.00020273,2]
[367333072,1750753855141,-172.6,0.00020273,2]
[367333073,1750753855150,-460.0,0.00020273,2]
[367333074,1750753855160,-460.0,0.00020273,2]
[367333075,1750753855169,-460.0,0.00020273,2]
[367333076,1750753855179,-460.0,0.00020273,2]
[367333077,1750753855188,-460.0,0.00020273,2]
[367333078,1750753855200,-460.0,0.00020273,2]
[367333079,1750753855213,-597.57,0.00020273,2]
[367333080,1750753855224,-460.0,0.00020273,2]
[367333081,1750753855234,-460.0,0.00020273,2]
[367333082,1750753855247,-460.0,0.00020273,2]
[367333083,1750753855257,-460.0,0.00020273,2]
[367333084,1750753855267,-460.0,0.00020273,2]
[367333085,1750753855277,-460.0,0.00020273,2]
[367333086,1750753855286,-460.0,0.00020273,2]
[367333087,1750753855296,-460.0,0.00020273,2]
[367333088,1750753855305,-897.7,0.00020273,2]
[367333089,1750753855315,-460.0,0.00020273,2]
[367333090,1750753855325,-460.0,0.00020273,2]
[367333091,1750753855334,-516.38429217,0.00020273,2]
[367333092,1750753855343,-460.0,0.00020273,2]
[367333093,1750753855353,-460.0,0.00020273,2]
[367333094,1750753855365,-460.0,0.00020273,2]
[367333095,1750753855374,-460.0,0.00020273,2]
[367333096,1750753855385,-460.0,0.00020273,2]
[367333097,1750753855394,-565.56,0.00020273,2]
[367333098,1750753855403,-460.0,0.00020273,2]
[367333099,1750753855413,-460.0,0.00020273,2]
[367333100,1750753855422,-460.0,0.00020273,2]
[367333101,1750753855432,-460.0,0.00020273,2]
[367333102,1750753855441,-1570.91,0.00020273,2]
[367333103,1750753855451,-460.0,0.00020273,2]
[367333104,1750753855460,-460.0,0.00020273,2]
[367333105,1750753855469,-460.0,0.00020273,2]
[367333106,1750753855479,-1063.33,0.00020273,2]
[367333107,1750753855489,-460.0,0.00020273,2]
[367333108,1750753855499,-460.0,0.00020273,2]
[367333109,1750753855508,-460.0,0.00020273,2]
[367333110,1750753855518,-460.0,0.00020273,2]
[367333111,1750753855529,-460.0,0.00020273,2]
[367333112,1750753855539,-460.0,0.00020273,2]
[367333113,1750753855548,-460.0,0.00020273,2]
[367333114,1750753855558,-460.0,0.00020273,2]
[367333115,1750753855568,-460.0,0.00020273,2]
[367333116,1750753855578,-460.0,0.00020273,2]
[367333117,1750753855587,-460.0,0.00020273,2]
[367333118,1750753855597,-460.0,0.00020273,2]
[367333119,1750753855606,-1236.02,0.00020273,2]
[367333120,1750753855616,-460.0,0.00020273,2]
[367333121,1750753855625,-460.0,0.00020273,2]
[367333122,1750753855634,-764.46,0.00020273,2]
[367333123,1750753855644,-505.75,0.00020273,2]
[367333124,1750753855655,-460.0,0.00020273,2]
[367333125,1750753855666,-460.0,0.00020273,2]
[367333126,1750753855675,-460.0,0.00020273,2]
[367333127,1750753855685,-460.0,0.00020273,2]
[367333128,1750753855694,-460.0,0.00020273,2]
[367333129,1750753855704,-460.0,0.00020273,2]
[367333130,1750753855714,-460.0,0.00020273,2]
[367333131,1750753855723,-460.0,0.00020273,2]
[367333132,1750753855735,-460.0,0.00020273,2]
[367333133,1750753855744,-460.0,0.00020273,2]
[367333134,1750753855754,-460.0,0.00020273,2]
[367333135,1750753855763,-460.0,0.00020273,2]
[367333136,1750753855772,-460.0,0.00020273,2]
[367333137,1750753855783,-3596.87,0.00020273,2]
[367333138,1750753855792,-553.59,0.00020273,2]
[367333139,1750753855802,-1102.05,0.00020273,2]
[367333140,1750753855812,-460.0,0.00020273,2]
[367333141,1750753855822,-460.0,0.00020273,2]
[367333142,1750753855834,-460.0,0.00020273,2]
[367333143,1750753855843,-460.0,0.00020273,2]
[367333144,1750753855852,-1669.02,0.00020273,2]
[367333145,1750753855862,-460.0,0.00020273,2]
[367333146,1750753855871,-460.22,0.00020273,2]
[367333147,1750753855880,-460.0,0.00020273,2]
[367333148,1750753855890,-545.79,0.00020273,2]
[367333149,1750753855899,-460.0,0.00020273,2]
[367333150,1750753855908,-1429.9,0.00020273,2]
[367333151,1750753855918,-1393.46,0.00020273,2]
[367333152,1750753855929,-4047.25,0.00020273,2]
[367333153,1750753855939,-460.0,0.00020273,2]
[367333154,1750753855949,-1153.41,0.00020273,2]
[367333155,1750753855958,-460.0,0.00020273,2]
[367333156,1750753855968,-460.0,0.00020273,2]
[367333157,1750753855978,-460.0,0.00020273,2]
[367333158,1750753855987,-460.0,0.00020273,2]
[367333159,1750753855997,-1245.34,0.00020273,2]
[367333160,1750753856007,-460.0,0.00020273,2]
[367333161,1750753856016,-460.0,0.00020273,2]
[367333162,1750753856026,-1260.54,0.00020273,2]
[367333163,1750753856038,-460.0,0.00020273,2]
[367333164,1750753856048,-338.16728226,0.00020273,2]
[367333165,1750753856059,-460.0,0.00020273,2]
[367333166,1750753856068,-460.0,0.00020273,2]
[367333167,1750753856077,-424.27,0.00020273,2]
[367333168,1750753856086,-1307.67,0.00020273,2]
[367333169,1750753856095,-3803.53,0.00020273,2]
[367333170,1750753856104,-632.19,0.00020273,2]
[367333171,1750753856114,-460.0,0.00020273,2]
[367333172,1750753856123,-460.0,0.00020273,2]
[367333173,1750753856133,-2444.82,0.00020273,2]
[367333174,1750753856142,-460.0,0.00020273,2]
[367333175,1750753856152,-460.0,0.00020273,2]
[367333176,1750753856162,-495.64,0.00020273,2]
[367333177,1750753856172,-4883.92,0.00020273,2]
[367333178,1750753856181,-460.0,0.00020273,2]
[367333179,1750753856191,-460.0,0.00020273,2]
[367333180,1750753856199,-460.0,0.00020273,2]
[367333181,1750753856209,-460.0,0.00020273,2]
[367333182,1750753856218,-524.71,0.00020273,2]
[367333183,1750753856227,-1033.7,0.00020273,2]
[367333184,1750753856240,-1169.19,0.00020273,2]
[367333185,1750753856249,-993.21,0.00020273,2]
[367333186,1750753856258,-460.0,0.00020273,2]
[367333187,1750753856267,-460.0,0.00020273,2]
[367333188,1750753856277,-460.0,0.00020273,2]
[367333189,1750753856286,-460.0,0.00020273,2]
[367333190,1750753856295,-2909.68,0.00020273,2]
[367333191,1750753856305,-460.0,0.00020273,2]
[367333192,1750753856314,-970.5,0.00020273,2]
[367333193,1750753856323,-460.0,0.00020273,2]
[367333194,1750753856334,-1536.63,0.00020273,2]
[367333195,1750753856344,-460.0,0.00020273,2]
[367333196,1750753856354,-4779.35,0.00020273,2]
[367333197,1750753856363,-559.38,0.00020273,2]
[367333198,1750753856371,-460.0,0.00020273,2]
[367333199,1750753856381,-460.0,0.00020273,2]
[367333200,1750753856391,-490.83,0.00020273,2]
[367333201,1750753856400,-460.0,0.00020273,2]
[367333202,1750753856410,-3740.04,0.00020273,2]
[367333203,1750753856420,-784.58,0.00020273,2]
[367333204,1750753856428,-460.0,0.00020273,2]
[367333205,1750753856438,-460.0,0.00020273,2]
[367333206,1750753856447,-578.07,0.00020273,2]
[367333207,1750753856455,-460.0,0.00020273,2]
[367333208,1750753856464,-460.0,0.00020273,2]
[367333209,1750753856473,-460.0,0.00020273,2]
[367333210,1750753856482,-471.2,0.00020273,2]
[367333211,1750753856491,-735.87,0.00020273,2]
[367333212,1750753856501,-460.0,0.00020273,2]
[367333213,1750753856510,-460.0,0.00020273,2]
[367333214,1750753856519,-460.0,0.00020273,2]
[367333215,1750753856528,-1246.9,0.00020273,2]
[367333216,1750753856537,-460.0,0.00020273,2]
[367333217,1750753856546,-460.0,0.00020273,2]
[367333218,1750753856555,-917.49,0.00020273,2]
[367333219,1750753856565,-4012.53,0.00020273,2]
[367333220,1750753856574,-460.0,0.00020273,2]
[367333221,1750753856583,-1024.0,0.00020273,2]
[367333222,1750753856591,-460.0,0.00020273,2]
[367333223,1750753856600,-460.0,0.00020273,2]
[367333224,1750753856609,-2174.0,0.00020273,2]
[367333225,1750753856618,-1810.6,0.00020273,2]
[367333226,1750753856627,-460.0,0.00020273,2]
[367333227,1750753856636,-460.0,0.00020273,2]
[367333228,1750753856644,-228.76,0.00020273,2]
[367333229,1750753856652,-460.0,0.00020273,2]
[367333230,1750753856661,-3902.37,0.00020273,2]
[367333231,1750753856670,-1282.97,0.00020273,2]
[367333232,1750753856680,-9554.89,0.00020273,2]
[367333233,1750753856689,-460.0,0.00020273,2]
[367333234,1750753856698,-460.0,0.00020273,2]
[367333235,1750753856708,-470.38,0.00020273,2]
[367333236,1750753856717,-460.0,0.00020273,2]
[367333237,1750753856727,-4596.98,0.00020273,2]
[367333238,1750753856737,-1536.12,0.00020273,2]
[367333239,1750753856747,-460.0,0.00020273,2]
[367333240,1750753856756,-827.88,0.00020273,2]
[367333241,1750753856765,-1383.99,0.00020273,2]
[367333242,1750753856774,-1445.24,0.00020273,2]
[367333243,1750753856784,-460.0,0.00020273,2]
[367333244,1750753856793,-460.0,0.00020273,2]
[367333245,1750753856803,-741.52,0.00020273,2]
[367333246,1750753856812,-460.0,0.00020273,2]
[367333247,1750753856821,-3721.17,0.00020273,2]
[367333248,1750753856831,-1427.47,0.00020273,2]
[367333249,1750753856841,-2744.12,0.00020273,2]
[367333250,1750753856850,-1425.02,0.00020273,2]
[367333251,1750753856941,-1214.81,0.00020273,2]
[367333252,1750753856961,-460.0,0.00020273,2]
[367333253,1750753856970,-460.0,0.00020273,2]
[367333254,1750753856980,-460.0,0.00020273,2]
[367333255,1750753856990,-460.0,0.00020273,2]
[367333256,1750753856999,-460.0,0.00020273,2]
[367333257,1750753857008,-152.6850649,0.00020274,2]
[367333258,1750753857018,-500.0,0.00020274,2]
[367333259,1750753857027,-151.0,0.000203,3]
[367333260,1750753857036,-250.0,0.000203,2]
[367333261,1750753857045,-250.0,0.000203,2]
[367333262,1750753857054,-250.0,0.000203,2]
[367333263,1750753857063,-250.0,0.000203,2]
[367333264,1750753857073,-250.0,0.000203,2]
[367333265,1750753857082,-251.0,0.000203,2]
[367333266,1750753857092,-500.0,0.00020302,2]
[367333267,1750753857101,-399.60244699,0.0002032,2]
[367333268,1750753857110,-507.52564531,0.00020321,2]
[367333269,1750753857119,-1000.0,0.00020321,2]
[367333270,1750753857129,-1000.0,0.00020321,2]
[367333271,1750753857138,-416.06737292,0.00020321,2]
[367333272,1750753857147,-1000.0,0.00020321,2]
[367333273,1750753857156,-500.0,0.00020321,2]
[367333274,1750753857165,-928.52617537,0.00020321,2]
[367333275,1750753857174,-1000.0,0.00020321,2]
[367333276,1750753857183,-232.72454134,0.00020321,2]
[367333277,1750753857192,-429.82093682,0.00020321,2]
[367333278,1750753857201,-1000.0,0.00020321,2]
[367333279,1750753857210,-1000.0,0.00020321,2]
[367333280,1750753857219,-1000.0,0.00020321,2]
[367333281,1750753857228,-1000.0,0.00020321,2]
[367333282,1750753857239,-1000.0,0.00020321,2]
[367333283,1750753857249,-1000.0,0.00020321,2]
[367333284,1750753857259,-1000.0,0.00020321,2]
[367333285,1750753857268,-1000.0,0.00020321,2]
[367333286,1750753857277,-1031.54010607,0.00020321,2]
[367333287,1750753857289,-1000.0,0.00020321,2]
[367333288,1750753857298,-500.48505275,0.00020321,2]
[367333289,1750753857308,-500.0,0.00020329,2]
[367333290,1750753857317,-196.0,0.00020341,2]
[367333291,1750753857326,-524.55238754,0.00020357,2]
[367333292,1750753857335,-831.29355679,0.00020388,2]
[367333293,1750753857345,-151.0,0.000204,4]
[367333294,1750753857355,-151.0,0.000204,3]
[367333295,1750753857364,-3052.6688741,0.00020417,3]
[367333296,1750753857373,-444.64,0.00020467,3]
[367333297,1750753857382,-585.3,0.00020469,3]
[367333298,1750753857391,-8596.68652399,0.00020473,2]
[367333299,1750753857400,-9257.53717718,0.000205,2]
[367333300,1750753857409,-500.8432887,0.00020521,2]
[367333301,1750753857418,-1000.0,0.00020521,2]
[367333302,1750753857428,-1000.0,0.00020521,2]
[367333303,1750753857439,-503.31754439,0.00020521,2]
[367333304,1750753857449,-1000.0,0.00020521,2]
[367333305,1750753857458,-1000.0,0.00020521,2]
[367333306,1750753857468,-1000.0,0.00020521,2]
[367333307,1750753857477,-779.03958555,0.00020521,2]
[367333308,1750753857486,-1000.0,0.00020521,2]
[367333309,1750753857496,-215.0738,0.00020535,2]
[367333310,1750753857505,-460.0,0.00020547,2]
[367333311,1750753857514,-460.0,0.00020547,2]
[367333312,1750753857523,-447.90001521,0.00020547,2]
[367333313,1750753857534,-460.0,0.00020547,2]
[367333314,1750753857543,-429.04908266,0.00020547,2]
[367333315,1750753857552,-460.0,0.00020547,2]
[367333316,1750753857562,-460.0,0.00020547,2]
[367333317,1750753857571,-356.05123491,0.00020547,2]
[367333318,1750753857580,-460.0,0.00020547,2]
[367333319,1750753857590,-460.0,0.00020547,2]
[367333320,1750753857601,-471.4495204,0.00020547,2]
[367333321,1750753857611,-398.21807903,0.00020547,2]
[367333322,1750753857620,-282.16057541,0.00020547,2]
[367333323,1750753857630,-695.39,0.00020547,14]
[367333324,1750753857638,-460.0,0.00020547,2]
[367333325,1750753857648,-597.57,0.00020547,2]
[367333326,1750753857657,-460.0,0.00020547,2]
[367333327,1750753857666,-460.0,0.00020547,2]
[367333328,1750753857676,-460.0,0.00020547,2]
[367333329,1750753857686,-460.0,0.00020547,2]
[367333330,1750753857695,-460.0,0.00020547,2]
[367333331,1750753857705,-460.0,0.00020547,2]
[367333332,1750753857714,-460.0,0.00020547,2]
[367333333,1750753857723,-460.0,0.00020547,2]
[367333334,1750753857733,-897.7,0.00020547,2]
[367333335,1750753857742,-460.0,0.00020547,2]
[367333336,1750753857751,-464.15720533,0.00020547,2]
[367333337,1750753857761,-460.0,0.00020547,2]
[367333338,1750753857770,-460.0,0.00020547,2]
[367333339,1750753857779,-460.0,0.00020547,2]
[367333340,1750753857788,-460.0,0.00020547,2]
[367333341,1750753857798,-460.0,0.00020547,2]
[367333342,1750753857807,-565.56,0.00020547,2]
[367333343,1750753857816,-460.0,0.00020547,2]
[367333344,1750753857826,-460.0,0.00020547,2]
[367333345,1750753857835,-564.93180936,0.00020547,2]
[367333346,1750753857844,-460.0,0.00020547,2]
[367333347,1750753857854,-1570.91,0.00020547,2]
[367333348,1750753857863,-460.0,0.00020547,2]
[367333349,1750753857872,-460.0,0.00020547,2]
[367333350,1750753857881,-460.0,0.00020547,2]
[367333351,1750753857890,-1063.33,0.00020547,2]
[367333352,1750753857899,-460.0,0.00020547,2]
[367333353,1750753857909,-460.0,0.00020547,2]
[367333354,1750753857918,-460.0,0.00020547,2]
[367333355,1750753857927,-460.0,0.00020547,2]
[367333356,1750753857936,-460.0,0.00020547,2]
[367333357,1750753857946,-460.0,0.00020547,2]
[367333358,1750753857955,-460.0,0.00020547,2]
[367333359,1750753857964,-460.0,0.00020547,2]
[367333360,1750753857973,-460.0,0.00020547,2]
[367333361,1750753857982,-460.0,0.00020547,2]
[367333362,1750753857991,-460.0,0.00020547,2]
[367333363,1750753858000,-460.0,0.00020547,2]
[367333364,1750753858009,-1236.02,0.00020547,2]
[367333365,1750753858018,-460.0,0.00020547,2]
[367333366,1750753858027,-460.0,0.00020547,2]
[367333367,1750753858037,-764.46,0.00020547,2]
[367333368,1750753858047,-505.75,0.00020547,2]
[367333369,1750753858056,-211.59,0.00020547,2]
[367333370,1750753858066,-460.0,0.00020547,2]
[367333371,1750753858075,-460.0,0.00020547,2]
[367333372,1750753858084,-460.0,0.00020547,2]
[367333373,1750753858093,-460.0,0.00020547,2]
[367333374,1750753858102,-460.0,0.00020547,2]
[367333375,1750753858114,-460.0,0.00020547,2]
[367333376,1750753858124,-460.0,0.00020547,2]
[367333377,1750753858133,-460.0,0.00020547,2]
[367333378,1750753858143,-460.0,0.00020547,2]
[367333379,1750753858155,-460.0,0.00020547,2]
[367333380,1750753858165,-460.0,0.00020547,2]
[367333381,1750753858174,-563.92096638,0.00020547,2]
[367333382,1750753858183,-3596.87,0.00020547,2]
[367333383,1750753858192,-553.59,0.00020547,2]
[367333384,1750753858201,-1102.05,0.00020547,2]
[367333385,1750753858210,-571.37,0.00020547,2]
[367333386,1750753858220,-460.0,0.00020547,2]
[367333387,1750753858230,-460.0,0.00020547,2]
[367333388,1750753858245,-460.0,0.00020547,2]
[367333389,1750753858254,-460.0,0.00020547,2]
[367333390,1750753858264,-1669.02,0.00020547,2]
[367333391,1750753858273,-460.22,0.00020547,2]
[367333392,1750753858284,-460.0,0.00020547,2]
[367333393,1750753858293,-460.0,0.00020547,2]
[367333394,1750753858303,-1429.9,0.00020547,2]
[367333395,1750753858312,-1393.46,0.00020547,2]
[367333396,1750753858322,-4047.25,0.00020547,2]
[367333397,1750753858331,-460.0,0.00020547,2]
[367333398,1750753858341,-1153.41,0.00020547,2]
[367333399,1750753858350,-460.0,0.00020547,2]
[367333400,1750753858359,-460.0,0.00020547,2]
[367333401,1750753858369,-460.0,0.00020547,2]
[367333402,1750753858378,-460.0,0.00020547,2]
[367333403,1750753858387,-1245.34,0.00020547,2]
[367333404,1750753858397,-460.0,0.00020547,2]
[367333405,1750753858406,-460.0,0.00020547,2]
[367333406,1750753858416,-1260.54,0.00020547,2]
[367333407,1750753858425,-460.0,0.00020547,2]
[367333408,1750753858434,-460.0,0.00020547,2]
[367333409,1750753858444,-460.0,0.00020547,2]
[367333410,1750753858454,-1307.67,0.00020547,2]
[367333411,1750753858463,-3803.53,0.00020547,2]
[367333412,1750753858473,-632.19,0.00020547,2]
[367333413,1750753858482,-551.64,0.00020547,2]
[367333414,1750753858491,-460.0,0.00020547,2]
[367333415,1750753858501,-2444.82,0.00020547,2]
[367333416,1750753858510,-556.91494727,0.00020547,2]
[367333417,1750753858519,-460.0,0.00020547,2]
[367333418,1750753858528,-495.64,0.00020547,2]
[367333419,1750753858537,-4883.92,0.00020547,2]
[367333420,1750753858546,-596.38,0.00020547,2]
[367333421,1750753858555,-460.0,0.00020547,2]
[367333422,1750753858564,-460.0,0.00020547,2]
[367333423,1750753858574,-460.0,0.00020547,2]
[367333424,1750753858583,-524.71,0.00020547,2]
[367333425,1750753858678,-1033.7,0.00020547,2]
[367333426,1750753858687,-1169.19,0.00020547,2]
[367333427,1750753858696,-993.21,0.00020547,2]
[367333428,1750753858706,-460.0,0.00020547,2]
[367333429,1750753858715,-460.0,0.00020547,2]
[367333430,1750753858724,-460.0,0.00020547,2]
[367333431,1750753858734,-2909.68,0.00020547,2]
[367333432,1750753858743,-460.0,0.00020547,2]
[367333433,1750753858752,-970.5,0.00020547,2]
[367333434,1750753858761,-460.0,0.00020547,2]
[367333435,1750753858771,-1536.63,0.00020547,2]
[367333436,1750753858780,-460.0,0.00020547,2]
[367333437,1750753858789,-4779.35,0.00020547,2]
[367333438,1750753858799,-559.38,0.00020547,2]
[367333439,1750753858808,-460.0,0.00020547,2]
[367333440,1750753858818,-460.0,0.00020547,2]
[367333441,1750753858827,-490.83,0.00020547,2]
[367333442,1750753858837,-460.0,0.00020547,2]
[367333443,1750753858846,-3740.04,0.00020547,2]
[367333444,1750753858855,-784.58,0.00020547,2]
[367333445,1750753858865,-460.0,0.00020547,2]
[367333446,1750753858875,-460.0,0.00020547,2]
[367333447,1750753858885,-578.07,0.00020547,2]
[367333448,1750753858894,-460.0,0.00020547,2]
[367333449,1750753858904,-460.0,0.00020547,2]
[367333450,1750753858913,-460.0,0.00020547,2]
[367333451,1750753858922,-471.2,0.00020547,2]
[367333452,1750753858932,-735.87,0.00020547,2]
[367333453,1750753858941,-460.0,0.00020547,2]
[367333454,1750753858950,-460.0,0.00020547,2]
[367333455,1750753858960,-1246.9,0.00020547,2]
[367333456,1750753858969,-460.0,0.00020547,2]
[367333457,1750753858979,-917.49,0.00020547,2]
[367333458,1750753858988,-4012.53,0.00020547,2]
[367333459,1750753858997,-460.0,0.00020547,2]
[367333460,1750753859007,-1024.0,0.00020547,2]
[367333461,1750753859016,-460.0,0.00020547,2]
[367333462,1750753859025,-460.0,0.00020547,2]
[367333463,1750753859034,-1810.6,0.00020547,2]
[367333464,1750753859043,-2174.0,0.00020547,2]
[367333465,1750753859052,-460.0,0.00020547,2]
[367333466,1750753859061,-460.0,0.00020547,2]
[367333467,1750753859070,-460.0,0.00020547,2]
[367333468,1750753859079,-3902.37,0.00020547,2]
[367333469,1750753859088,-1282.97,0.00020547,2]
[367333470,1750753859097,-9554.89,0.00020547,2]
[367333471,1750753859106,-460.0,0.00020547,2]
[367333472,1750753859115,-460.0,0.00020547,2]
[367333473,1750753859124,-470.38,0.00020547,2]